fUST/lending_fUST_20250522
["ID","MTS","AMOUNT","RATE_DAILY","PERIOD"]
[361873716,1747860359712,-494.83404004,0.00021917,2]
[361873717,1747860359734,-430.0,0.00021917,2]
[361873718,1747860359757,-430.0,0.00021917,2]
[361873719,1747860359779,-430.0,0.00021917,2]
[361873720,1747860359804,-430.0,0.00021917,2]
[361873721,1747860359826,-400.0,0.00021917,2]
[361873722,1747860359849,-430.0,0.00021917,2]
[361873723,1747860359873,-400.0,0.00021917,2]
[361873724,1747860359895,-430.0,0.00021917,2]
[361873725,1747860359916,-400.0,0.00021917,2]
[361873726,1747860359938,-430.0,0.00021917,2]
[361873727,1747860359959,-430.0,0.00021917,2]
[361873728,1747860359980,-430.0,0.00021917,2]
[361873729,1747860360003,-430.0,0.00021917,2]
[361873730,1747860360026,-430.0,0.00021917,2]
[361873731,1747860360048,-430.0,0.00021917,2]
[361873732,1747860360069,-506.45264645,0.00021917,2]
[361873733,1747860360092,-430.0,0.00021917,2]
[361873734,1747860360114,-430.0,0.00021917,2]
[361873735,1747860360137,-430.0,0.00021917,2]
[361873736,1747860360159,-430.0,0.00021917,2]
[361873737,1747860360183,-430.0,0.00021917,2]
[361873738,1747860360207,-430.0,0.00021917,2]
[361873739,1747860360230,-430.0,0.00021917,2]
[361873740,1747860360253,-430.25563385,0.00021917,2]
[361873741,1747860360276,-430.0,0.00021917,2]
[361873742,1747860360298,-430.0,0.00021917,2]
[361873743,1747860360319,-430.0,0.00021917,2]
[361873744,1747860360342,-430.0,0.00021917,2]
[361873745,1747860360363,-430.0,0.00021917,2]
[361873746,1747860360388,-430.0,0.00021917,2]
[361873747,1747860360409,-430.0,0.00021917,2]
[361873748,1747860360433,-430.0,0.00021917,2]
[361873749,1747860360458,-300.0,0.00021917,2]
[361873750,1747860360480,-430.0,0.00021917,2]
[361873751,1747860360501,-430.0,0.00021917,2]
[361873752,1747860360523,-430.0,0.00021917,2]
[361873753,1747860360545,-430.0,0.00021917,2]
[361873754,1747860360567,-430.0,0.00021917,2]
[361873755,1747860360589,-430.0,0.00021917,2]
[361873756,1747860360613,-430.0,0.00021917,2]
[361873757,1747860360635,-430.0,0.00021917,2]
[361873758,1747860360658,-430.0,0.00021917,2]
[361873759,1747860360681,-500.0,0.00021917,2]
[361873760,1747860360707,-150.6844708,0.00021917,2]
[361873761,1747860411352,-1794.73013209,0.00021698,2]
[361873762,1747860411380,-279.3155292,0.00021917,2]
[361873763,1747860411410,-430.0,0.00021917,2]
[361873764,1747860411439,-430.0,0.00021917,2]
[361873765,1747860411467,-430.0,0.00021917,2]
[361873766,1747860411495,-450.0,0.00021917,2]
[361873767,1747860411523,-173.66318835,0.00021917,2]
[361873768,1747860411547,-430.0,0.00021917,2]
[361873769,1747860411572,-109.65393958,0.00021917,2]
[361873770,1747860429095,-300.0,0.00021916,2]
[361873771,1747860429122,-320.34606042,0.00021917,2]
[361873772,1747860429149,-430.0,0.00021917,2]
[361873773,1747860429173,-430.0,0.00021917,2]
[361873774,1747860429194,-430.0,0.00021917,2]
[361873775,1747860429218,-430.0,0.00021917,2]
[361873776,1747860429429,-216.78,0.00021917,2]
[361873777,1747860429456,-430.0,0.00021917,2]
[361873778,1747860429480,-430.0,0.00021917,2]
[361873779,1747860429502,-430.0,0.00021917,2]
[361873780,1747860429526,-430.0,0.00021917,2]
[361873781,1747860429549,-430.0,0.00021917,2]
[361873782,1747860429571,-430.0,0.00021917,2]
[361873783,1747860429593,-430.0,0.00021917,2]
[361873784,1747860429615,-500.0,0.00021917,2]
[361873785,1747860429639,-500.0,0.00021917,2]
[361873786,1747860429662,-290.0,0.00021917,2]
[361873787,1747860429684,-576.57092278,0.00021917,2]
[361873788,1747860429708,-430.0,0.00021917,2]
[361873789,1747860429731,-430.0,0.00021917,2]
[361873790,1747860429753,-430.0,0.00021917,2]
[361873791,1747860429778,-430.0,0.00021917,2]
[361873792,1747860429801,-409.9081922,0.00021917,2]
[361873793,1747860429825,-450.0,0.00021917,2]
[361873794,1747860429847,-430.0,0.00021917,2]
[361873795,1747860429874,-430.0,0.00021917,2]
[361873796,1747860429897,-430.0,0.00021917,2]
[361873797,1747860429919,-430.0,0.00021917,2]
[361873798,1747860429943,-430.0,0.00021917,2]
[361873799,1747860429966,-450.0,0.00021917,2]
[361873800,1747860429989,-430.0,0.00021917,2]
[361873801,1747860430011,-430.0,0.00021917,2]
[361873802,1747860430036,-430.0,0.00021917,2]
[361873803,1747860430057,-430.0,0.00021917,2]
[361873804,1747860430079,-430.0,0.00021917,2]
[361873805,1747860430100,-430.0,0.00021917,2]
[361873806,1747860430126,-400.0,0.00021917,2]
[361873807,1747860430148,-430.0,0.00021917,2]
[361873808,1747860430171,-430.0,0.00021917,2]
[361873809,1747860430193,-430.0,0.00021917,2]
[361873810,1747860430217,-430.0,0.00021917,2]
[361873811,1747860430239,-432.36761153,0.00021917,2]
[361873812,1747860430263,-430.0,0.00021917,2]
[361873813,1747860430285,-356.64939228,0.00021917,2]
[361873814,1747860430306,-430.0,0.00021917,2]
[361873815,1747860430333,-1631.55566944,0.00021934,6]
[361873816,1747860430355,-500.0,0.00021997,2]
[361873817,1747860430377,-430.0,0.00022036,2]
[361873818,1747860430399,-400.0,0.00022036,2]
[361873819,1747860430422,-151.702,0.00022036,2]
[361873820,1747860430445,-544.08010736,0.00022036,2]
[361873821,1747860430472,-1631.55566944,0.00022107,6]
[361873822,1747860430495,-400.0,0.00022135,4]
[361873823,1747860430521,-273.28115198,0.0002219,2]
[361873824,1747860430545,-490.41366801,0.0002219,2]
[361873825,1747860430567,-242.7196056,0.00022191,2]
[361873826,1747860430590,-430.0,0.00022191,2]
[361873827,1747860430613,-430.0,0.00022191,2]
[361873828,1747860430636,-430.0,0.00022191,2]
[361873829,1747860430658,-430.0,0.00022191,2]
[361873830,1747860430680,-430.0,0.00022191,2]
[361873831,1747860430702,-474.18658727,0.00022191,2]
[361873832,1747860430724,-430.0,0.00022191,2]
[361873833,1747860430746,-430.0,0.00022191,2]
[361873834,1747860430770,-430.0,0.00022191,2]
[361873835,1747860430793,-507.92,0.00022191,2]
[361873836,1747860430815,-430.0,0.00022191,2]
[361873837,1747860430839,-430.0,0.00022191,2]
[361873838,1747860430862,-422.84143699,0.00022191,2]
[361873839,1747860430888,-430.0,0.00022191,2]
[361873840,1747860430909,-430.0,0.00022191,2]
[361873841,1747860430931,-430.0,0.00022191,2]
[361873842,1747860430952,-430.0,0.00022191,2]
[361873843,1747860430979,-430.0,0.00022191,2]
[361873844,1747860431000,-305.04900472,0.00022191,2]
[361873845,1747860431022,-430.0,0.00022191,2]
[361873846,1747860431044,-430.0,0.00022191,2]
[361873847,1747860431066,-430.0,0.00022191,2]
[361873848,1747860431090,-193.72,0.00022191,2]
[361873849,1747860431111,-430.0,0.00022191,2]
[361873850,1747860431133,-430.0,0.00022191,2]
[361873851,1747860431154,-370.0,0.00022191,2]
[361873852,1747860431177,-430.0,0.00022191,2]
[361873853,1747860431198,-430.0,0.00022191,2]
[361873854,1747860431220,-401.01655798,0.00022191,2]
[361873855,1747860431243,-390.0,0.00022191,2]
[361873856,1747860431267,-430.0,0.00022191,2]
[361873857,1747860431288,-430.0,0.00022191,2]
[361873858,1747860431309,-430.0,0.00022191,2]
[361873859,1747860431333,-405.40279732,0.00022191,2]
[361873860,1747860431355,-430.0,0.00022191,2]
[361873861,1747860431377,-430.0,0.00022191,2]
[361873862,1747860431400,-430.0,0.00022191,2]
[361873863,1747860431422,-430.0,0.00022191,2]
[361873864,1747860431446,-430.0,0.00022191,2]
[361873865,1747860431469,-430.0,0.00022191,2]
[361873866,1747860431493,-430.0,0.00022191,2]
[361873867,1747860431515,-430.0,0.00022191,2]
[361873868,1747860431537,-430.0,0.00022191,2]
[361873869,1747860431559,-176.38,0.00022191,2]
[361873870,1747860431582,-430.0,0.00022191,2]
[361873871,1747860431605,-430.0,0.00022191,2]
[361873872,1747860431628,-430.0,0.00022191,2]
[361873873,1747860431650,-430.0,0.00022191,2]
[361873874,1747860431673,-430.0,0.00022191,2]
[361873875,1747860431696,-430.0,0.00022191,2]
[361873876,1747860431721,-430.0,0.00022191,2]
[361873877,1747860431745,-430.0,0.00022191,2]
[361873878,1747860431769,-430.0,0.00022191,2]
[361873879,1747860431792,-430.0,0.00022191,2]
[361873880,1747860431818,-430.0,0.00022191,2]
[361873881,1747860431840,-430.0,0.00022191,2]
[361873882,1747860431866,-430.0,0.00022191,2]
[361873883,1747860431890,-430.0,0.00022191,2]
[361873884,1747860431912,-304.54655153,0.00022191,2]
[361873885,1747860431943,-125.45344847,0.00022191,2]
[361873886,1747860431966,-430.0,0.00022191,2]
[361873887,1747860431987,-430.0,0.00022191,2]
[361873888,1747860432013,-1631.55566944,0.00022279,6]
[361873889,1747860432035,-593.75284873,0.00022292,2]
[361873890,1747860432056,-500.0,0.00022293,2]
[361873891,1747860432078,-500.0,0.00022308,2]
[361873892,1747860432098,-362.50987296,0.00022309,2]
[361873893,1747860432118,-400.0,0.00022309,2]
[361873894,1747860432140,-430.0,0.00022309,2]
[361873895,1747860432161,-509.69,0.00022309,2]
[361873896,1747860432182,-430.0,0.00022309,2]
[361873897,1747860432206,-529.28,0.00022309,2]
[361873898,1747860432227,-430.0,0.00022309,2]
[361873899,1747860432249,-500.0,0.00022309,2]
[361873900,1747860432272,-430.0,0.00022309,2]
[361873901,1747860432294,-430.0,0.00022309,2]
[361873902,1747860432316,-356.25959563,0.00022309,2]
[361873903,1747860432338,-430.0,0.00022309,2]
[361873904,1747860432358,-430.0,0.00022309,2]
[361873905,1747860432380,-491.62629353,0.00022309,2]
[361873906,1747860432400,-430.0,0.00022309,2]
[361873907,1747860432423,-430.0,0.00022309,2]
[361873908,1747860432444,-430.0,0.0002231,2]
[361873909,1747860432466,-374.6664082,0.0002231,2]
[361873910,1747860433298,-420.0,0.00021917,2]
[361873911,1747860433321,-430.0,0.00021917,2]
[361873912,1747860433345,-65.08930002,0.00022309,2]
[361873913,1747860445096,-430.0,0.00021917,2]
[361873914,1747860445116,-430.0,0.00021917,2]
[361873915,1747860445138,-430.0,0.00021917,2]
[361873916,1747860445160,-430.0,0.00022191,2]
[361873917,1747860445182,-430.0,0.00022191,2]
[361873918,1747860445202,-292.53120378,0.00022191,2]
[361873919,1747860445223,-353.48347321,0.00022191,2]
[361873920,1747860445244,-364.91069998,0.00022309,2]
[361873921,1747860445265,-55.3335918,0.0002231,2]
[361873922,1747860445286,-430.0,0.0002231,2]
[361873923,1747860445307,-430.0,0.0002231,2]
[361873924,1747860445329,-430.0,0.0002231,2]
[361873925,1747860445351,-430.0,0.0002231,2]
[361873926,1747860445372,-430.0,0.0002231,2]
[361873927,1747860445392,-430.0,0.0002231,2]
[361873928,1747860445412,-430.0,0.0002231,2]
[361873929,1747860445433,-430.0,0.0002231,2]
[361873930,1747860445454,-430.0,0.0002231,2]
[361873931,1747860445475,-430.0,0.0002231,2]
[361873932,1747860445497,-430.0,0.0002231,2]
[361873933,1747860445532,-430.0,0.0002231,2]
[361873934,1747860445557,-370.0,0.0002231,2]
[361873935,1747860445580,-430.0,0.0002231,2]
[361873936,1747860445603,-657.08,0.0002231,2]
[361873937,1747860445627,-500.0,0.0002231,2]
[361873938,1747860445649,-50000.0,0.0002231,2]
[361873939,1747860445671,-1000.0,0.00022311,2]
[361873940,1747860445693,-400.0,0.00022311,2]
[361873941,1747860445716,-430.0,0.00022311,2]
[361873942,1747860445740,-450.0,0.00022311,2]
[361873943,1747860445764,-430.0,0.00022311,2]
[361873944,1747860445793,-430.0,0.00022311,2]
[361873945,1747860445817,-430.0,0.00022311,2]
[361873946,1747860445844,-456.52986263,0.00022311,2]
[361873947,1747860445868,-430.0,0.00022311,2]
[361873948,1747860445890,-430.0,0.00022311,2]
[361873949,1747860445913,-430.0,0.00022311,2]
[361873950,1747860445936,-430.0,0.00022311,2]
[361873951,1747860445956,-430.0,0.00022311,2]
[361873952,1747860445977,-400.0,0.00022311,2]
[361873953,1747860445999,-430.0,0.00022311,2]
[361873954,1747860446020,-430.0,0.00022311,2]
[361873955,1747860446045,-400.0,0.00022311,2]
[361873956,1747860446066,-430.0,0.00022311,2]
[361873957,1747860446087,-430.0,0.00022311,2]
[361873958,1747860446108,-430.0,0.00022311,2]
[361873959,1747860446130,-430.0,0.00022311,2]
[361873960,1747860446152,-430.0,0.00022311,2]
[361873961,1747860446173,-400.0,0.00022311,2]
[361873962,1747860446194,-430.0,0.00022311,2]
[361873963,1747860446220,-430.0,0.00022311,2]
[361873964,1747860446242,-430.0,0.00022311,2]
[361873965,1747860446264,-430.0,0.00022311,2]
[361873966,1747860446286,-430.0,0.00022311,2]
[361873967,1747860446308,-430.0,0.00022311,2]
[361873968,1747860446330,-430.0,0.00022311,2]
[361873969,1747860446351,-531.0845976,0.00022311,2]
[361873970,1747860446373,-430.0,0.00022311,2]
[361873971,1747860446394,-400.0,0.00022311,2]
[361873972,1747860446414,-400.0,0.00022311,2]
[361873973,1747860446435,-430.0,0.00022311,2]
[361873974,1747860446456,-430.0,0.00022311,2]
[361873975,1747860446477,-430.0,0.00022311,2]
[361873976,1747860446498,-430.0,0.00022311,2]
[361873977,1747860446520,-430.0,0.00022311,2]
[361873978,1747860446542,-430.0,0.00022311,2]
[361873979,1747860446563,-430.0,0.00022311,2]
[361873980,1747860446584,-400.0,0.00022311,2]
[361873981,1747860446605,-430.0,0.00022311,2]
[361873982,1747860446626,-430.0,0.00022311,2]
[361873983,1747860446648,-430.0,0.00022311,2]
[361873984,1747860446671,-437.04,0.00022311,2]
[361873985,1747860446692,-430.0,0.00022311,2]
[361873987,1747860446713,-430.0,0.00022311,2]
[361873989,1747860446734,-430.0,0.00022311,2]
[361873991,1747860446754,-370.0,0.00022311,2]
[361873993,1747860446777,-430.0,0.00022311,2]
[361873995,1747860446798,-430.0,0.00022311,2]
[361873997,1747860446820,-430.0,0.00022311,2]
[361873999,1747860446845,-430.0,0.00022311,2]
[361874000,1747860446867,-430.0,0.00022311,2]
[361874002,1747860446887,-430.0,0.00022311,2]
[361874004,1747860446909,-400.0,0.00022311,2]
[361874006,1747860446931,-430.0,0.00022311,2]
[361874008,1747860446952,-430.0,0.00022311,2]
[361874010,1747860446973,-400.0,0.00022311,2]
[361874012,1747860446993,-430.0,0.00022311,2]
[361874014,1747860447014,-430.0,0.00022311,2]
[361874016,1747860447035,-340.0,0.00022311,2]
[361874018,1747860447056,-430.0,0.00022311,2]
[361874020,1747860447077,-340.0,0.00022311,2]
[361874022,1747860447097,-430.0,0.00022311,2]
[361874024,1747860447117,-340.0,0.00022311,2]
[361874025,1747860447139,-430.0,0.00022311,2]
[361874026,1747860447159,-400.0,0.00022311,2]
[361874027,1747860447181,-430.0,0.00022311,2]
[361874028,1747860447203,-430.0,0.00022311,2]
[361874029,1747860447224,-507.18,0.00022311,2]
[361874030,1747860447245,-430.0,0.00022311,2]
[361874031,1747860447265,-430.0,0.00022311,2]
[361874032,1747860447286,-400.0,0.00022311,2]
[361874033,1747860447307,-430.0,0.00022311,2]
[361874034,1747860447329,-430.0,0.00022311,2]
[361874035,1747860447349,-400.0,0.00022311,2]
[361874036,1747860447369,-557.40765434,0.00022311,2]
[361874037,1747860447389,-400.0,0.00022311,2]
[361874038,1747860447409,-430.0,0.00022311,2]
[361874039,1747860447429,-370.53091572,0.00022311,2]
[361874040,1747860447450,-430.0,0.00022311,2]
[361874041,1747860447470,-450.0,0.00022311,2]
[361874042,1747860447492,-433.09,0.00022311,2]
[361874043,1747860447514,-430.0,0.00022311,2]
[361874044,1747860447536,-430.0,0.00022311,2]
[361874045,1747860447557,-161.51,0.00022311,2]
[361874046,1747860447578,-400.0,0.00022311,2]
[361874047,1747860447601,-430.0,0.00022311,2]
[361874048,1747860447623,-400.0,0.00022311,2]
[361874049,1747860447646,-509.19,0.00022311,2]
[361874050,1747860447669,-300.0,0.00022311,2]
[361874051,1747860447690,-450.0,0.00022311,2]
[361874052,1747860447712,-400.0,0.00022311,2]
[361874053,1747860447734,-430.0,0.00022311,2]
[361874054,1747860447754,-400.0,0.00022311,2]
[361874055,1747860447776,-430.0,0.00022311,2]
[361874056,1747860447798,-400.0,0.00022311,2]
[361874057,1747860447820,-400.0,0.00022311,2]
[361874058,1747860447845,-300.0,0.00022311,2]
[361874059,1747860447867,-430.0,0.00022311,2]
[361874060,1747860447888,-430.0,0.00022311,2]
[361874061,1747860447908,-403.12806976,0.00022311,2]
[361874062,1747860447932,-400.53351531,0.00022311,2]
[361874063,1747860447965,-430.0,0.00022311,2]
[361874064,1747860447989,-430.0,0.00022311,2]
[361874065,1747860448012,-430.0,0.00022311,2]
[361874066,1747860448035,-442.74556982,0.00022311,2]
[361874067,1747860448057,-430.0,0.00022311,2]
[361874068,1747860448079,-430.0,0.00022311,2]
[361874069,1747860448101,-430.0,0.00022311,2]
[361874070,1747860448299,-401.22903605,0.00022311,2]
[361874071,1747860448323,-430.0,0.00022311,2]
[361874072,1747860448346,-430.0,0.00022311,2]
[361874073,1747860448368,-430.0,0.00022311,2]
[361874074,1747860448391,-401.19070995,0.00022311,2]
[361874075,1747860448412,-430.0,0.00022311,2]
[361874076,1747860448433,-430.0,0.00022311,2]
[361874077,1747860448454,-430.0,0.00022311,2]
[361874078,1747860448475,-404.14285129,0.00022311,2]
[361874079,1747860448496,-416.33006213,0.00022311,2]
[361874080,1747860448517,-430.0,0.00022311,2]
[361874081,1747860448539,-212.41679935,0.00022443,2]
[361874082,1747860448566,-160.0,0.00022443,2]
[361874083,1747860448594,-1631.55566944,0.00022452,7]
[361874084,1747860448617,-500.0,0.00022464,2]
[361874085,1747860448640,-389.63,0.00022465,2]
[361874086,1747860448663,-497.13,0.00022465,2]
[361874087,1747860448686,-430.0,0.00022465,2]
[361874088,1747860448709,-252.29704008,0.00022465,2]
[361874089,1747860448733,-430.0,0.00022465,2]
[361874090,1747860448758,-430.0,0.00022465,2]
[361874091,1747860448781,-430.0,0.00022465,2]
[361874092,1747860448804,-319.18,0.00022465,2]
[361874093,1747860448830,-430.0,0.00022465,2]
[361874094,1747860448856,-430.0,0.00022465,2]
[361874095,1747860448882,-430.0,0.00022465,2]
[361874096,1747860448906,-430.0,0.00022465,2]
[361874097,1747860448931,-430.0,0.00022465,2]
[361874098,1747860448955,-529.28,0.00022583,2]
[361874099,1747860448978,-430.0,0.00022583,2]
[361874100,1747860449002,-430.0,0.00022583,2]
[361874101,1747860449026,-430.0,0.00022583,2]
[361874102,1747860449050,-501.03,0.00022584,2]
[361874103,1747860449074,-430.0,0.00022584,2]
[361874104,1747860449096,-508.79,0.00022584,2]
[361874105,1747860449118,-430.0,0.00022584,2]
[361874106,1747860449140,-430.0,0.00022584,2]
[361874107,1747860449162,-434.28102986,0.00022584,2]
[361874108,1747860449183,-434.43633773,0.00022584,2]
[361874109,1747860449205,-549.78,0.00022584,2]
[361874110,1747860449226,-657.08,0.00022584,2]
[361874111,1747860449249,-500.0,0.00022584,2]
[361874112,1747860449273,-500.0,0.00022584,2]
[361874113,1747860449298,-500.0,0.00022584,2]
[361874114,1747860449324,-218.04215468,0.00022584,2]
[361874115,1747860449346,-500.0,0.00022584,2]
[361874116,1747860449369,-500.0,0.00022584,2]
[361874117,1747860449391,-500.0,0.00022584,2]
[361874118,1747860449413,-500.0,0.00022584,2]
[361874119,1747860449435,-500.0,0.00022584,2]
[361874120,1747860449458,-529.77247539,0.00022584,2]
[361874121,1747860449481,-500.0,0.00022584,2]
[361874122,1747860449504,-500.0,0.00022584,2]
[361874123,1747860449528,-500.0,0.00022584,2]
[361874124,1747860449551,-500.0,0.00022584,2]
[361874125,1747860449573,-1000.0,0.00022585,2]
[361874126,1747860449595,-430.0,0.00022585,2]
[361874127,1747860449619,-430.0,0.00022585,2]
[361874128,1747860449641,-268.81239246,0.00022585,2]
[361874129,1747860450394,-430.0,0.00021917,2]
[361874130,1747860450416,-262.12468828,0.00022191,2]
[361874131,1747860450437,-430.0,0.00022309,2]
[361874132,1747860450459,-370.95449768,0.00022583,2]
[361874133,1747860450481,-161.18760754,0.00022585,2]
[361874134,1747860450506,-430.0,0.00022585,2]
[361874135,1747860450531,-430.0,0.00022585,2]
[361874136,1747860450551,-313.09678273,0.00022585,2]
[361874137,1747860450573,-420.0,0.00022585,2]
[361874138,1747860450594,-430.0,0.00022585,2]
[361874139,1747860450615,-518.82,0.00022585,2]
[361874140,1747860450636,-320.0,0.00022585,2]
[361874141,1747860450657,-340.0,0.00022585,2]
[361874142,1747860450678,-340.0,0.00022585,2]
[361874143,1747860450701,-340.0,0.00022585,2]
[361874144,1747860450724,-570.15,0.00022585,2]
[361874145,1747860450745,-290.0,0.00022585,2]
[361874146,1747860450767,-430.0,0.00022585,2]
[361874147,1747860450788,-430.0,0.00022585,2]
[361874148,1747860450810,-430.0,0.00022585,2]
[361874149,1747860450830,-430.0,0.00022585,2]
[361874150,1747860450856,-430.0,0.00022585,2]
[361874151,1747860450878,-430.0,0.00022585,2]
[361874152,1747860450899,-430.0,0.00022585,2]
[361874153,1747860450921,-340.62453092,0.00022585,2]
[361874154,1747860450942,-430.0,0.00022585,2]
[361874155,1747860450966,-430.0,0.00022585,2]
[361874156,1747860450987,-430.0,0.00022585,2]
[361874157,1747860451009,-430.0,0.00022585,2]
[361874158,1747860451032,-290.0,0.00022585,2]
[361874159,1747860451054,-430.0,0.00022585,2]
[361874160,1747860451075,-430.0,0.00022585,2]
[361874161,1747860451101,-290.0,0.00022585,2]
[361874162,1747860451123,-290.0,0.00022585,2]
[361874163,1747860451144,-430.0,0.00022585,2]
[361874164,1747860451165,-430.0,0.00022585,2]
[361874165,1747860451185,-430.0,0.00022585,2]
[361874166,1747860451206,-430.0,0.00022585,2]
[361874167,1747860451227,-430.0,0.00022585,2]
[361874168,1747860451259,-450.0,0.00022585,2]
[361874169,1747860451285,-420.0,0.00022585,2]
[361874170,1747860451307,-420.0,0.00022585,2]
[361874171,1747860451328,-420.0,0.00022585,2]
[361874172,1747860451350,-420.0,0.00022585,2]
[361874173,1747860451372,-430.0,0.00022585,2]
[361874174,1747860451393,-450.0,0.00022585,2]
[361874175,1747860451415,-430.0,0.00022585,2]
[361874176,1747860451439,-450.0,0.00022585,2]
[361874177,1747860451462,-430.0,0.00022585,2]
[361874178,1747860451485,-450.0,0.00022585,2]
[361874179,1747860451507,-420.0,0.00022585,2]
[361874180,1747860451528,-450.0,0.00022585,2]
[361874181,1747860451550,-425.28506817,0.00022585,2]
[361874182,1747860451571,-371.29663625,0.00022585,2]
[361874183,1747860451593,-401.78,0.00022585,2]
[361874184,1747860451614,-366.8590598,0.00022593,2]
[361874185,1747860451636,-500.0,0.00022706,2]
[361874186,1747860451658,-504.95411463,0.00022712,2]
[361874187,1747860451681,-506.04841963,0.00022712,2]
[361874188,1747860451706,-430.0,0.00022739,2]
[361874189,1747860451731,-430.0,0.00022739,2]
[361874190,1747860451754,-430.0,0.00022739,2]
[361874191,1747860451777,-430.0,0.00022739,2]
[361874192,1747860451801,-430.0,0.00022739,2]
[361874193,1747860451826,-430.0,0.00022739,2]
[361874194,1747860451855,-500.57666669,0.00022809,2]
[361874195,1747860451879,-500.41339641,0.00022809,2]
[361874196,1747860451902,-529.28,0.00022857,2]
[361874197,1747860451927,-430.0,0.00022857,2]
[361874198,1747860452101,-186.7,0.00022858,2]
[361874199,1747860452125,-657.08,0.00022858,2]
[361874200,1747860452148,-555.35,0.00022859,2]
[361874201,1747860452171,-242.4648664,0.00022895,4]
[361874202,1747860452192,-500.0,0.00022915,2]
[361874203,1747860452214,-500.0,0.00023,30]
[361874204,1747860452236,-500.0,0.00023,30]
[361874205,1747860452257,-500.0,0.00023,30]
[361874206,1747860452281,-500.0,0.00023,30]
[361874207,1747860452303,-240.76057521,0.00023,30]
[361874208,1747860452349,-259.23942479,0.00023,30]
[361874209,1747860452371,-619.8254275,0.00023,30]
[361874210,1747860452394,-500.0,0.00023,30]
[361874211,1747860452416,-430.0,0.00023013,2]
[361874212,1747860452439,-430.0,0.00023013,2]
[361874213,1747860452461,-430.0,0.00023013,2]
[361874214,1747860452484,-430.0,0.00023013,2]
[361874215,1747860452508,-430.0,0.00023013,2]
[361874216,1747860452532,-430.0,0.00023013,2]
[361874217,1747860452553,-1010.95161164,0.00023017,2]
[361874218,1747860452575,-163.0,0.00023028,2]
[361874219,1747860452597,-500.0,0.00023103,2]
[361874220,1747860452618,-430.0,0.00023104,2]
[361874221,1747860452639,-430.0,0.00023104,2]
[361874222,1747860452660,-430.0,0.00023104,2]
[361874223,1747860452684,-370.0,0.00023104,2]
[361874224,1747860452706,-401.17290025,0.00023104,2]
[361874225,1747860555123,-2079.18238497,0.0002028,2]
[361874226,1747860555146,-150.0,0.00020485,2]
[361874227,1747860555169,-181.50200852,0.00021259,2]
[361874228,1747860555191,-300.0,0.00021916,2]
[361874229,1747860555214,-524.25,0.00021917,2]
[361874230,1747860555236,-1598.6,0.00021917,2]
[361874231,1747860555257,-430.0,0.00021917,2]
[361874232,1747860555279,-218.47,0.00021917,2]
[361874233,1747860555299,-430.0,0.00021917,2]
[361874234,1747860555320,-150.26,0.00021917,2]